fUSD/lending_fUSD_20250126
["ID","MTS","AMOUNT","RATE_DAILY","PERIOD"]
[350418035,1737852632508,-1400.0,0.000102,3]
[350418036,1737852632518,-150.0,0.000102,2]
[350418037,1737852632527,-982.7,0.000102,2]
[350418038,1737852632536,-150.0,0.000102,2]
[350418039,1737852632547,-150.0,0.00010247,2]
[350418040,1737852632556,-999.99,0.00010247,2]
[350418041,1737852632565,-150.99,0.00010247,2]
[350418042,1737852632575,-27565.09,0.00010247,2]
[350418043,1737852632584,-419.50988026,0.00010247,2]
[350418044,1737852632639,-592.89011974,0.00010247,2]
[350418045,1737852632651,-372.92695889,0.000103,3]
[350418048,1737852638191,-2527.07304111,0.000103,3]
[350418049,1737852638201,-150.99,0.000103,2]
[350418050,1737852638211,-150.0,0.00010356,2]
[350418051,1737852638220,-150.0,0.00010356,2]
[350418052,1737852638230,-300.0,0.00010356,2]
[350418053,1737852638240,-150.0,0.00010356,2]
[350418054,1737852638250,-150.0,0.00010356,2]
[350418055,1737852638259,-438.0,0.00010356,2]
[350418056,1737852638270,-150.0,0.00010356,2]
[350418057,1737852638280,-438.0,0.00010356,2]
[350418058,1737852638289,-438.0,0.00010356,2]
[350418059,1737852638299,-150.0,0.00010356,2]
[350418060,1737852638309,-150.0,0.00010356,2]
[350418061,1737852638319,-437.3,0.00010356,2]
[350418062,1737852638328,-150.0,0.00010356,2]
[350418063,1737852638338,-150.0,0.00010356,2]
[350418064,1737852638347,-438.0,0.00010356,2]
[350418065,1737852638357,-300.0,0.00010356,2]
[350418066,1737852638367,-150.0,0.00010378,2]
[350418067,1737852638376,-150.0,0.00010378,2]
[350418068,1737852638386,-150.0,0.00010378,2]
[350418069,1737852638395,-982.7,0.00010378,2]
[350418070,1737852638405,-300.0,0.00010378,2]
[350418071,1737852638415,-150.0,0.00010378,2]
[350418072,1737852638424,-150.0,0.00010378,2]
[350418073,1737852638434,-1961.2,0.00010378,2]
[350418074,1737852638443,-150.0,0.00010378,2]
[350418075,1737852638453,-150.0,0.00010378,2]
[350418076,1737852638462,-874.65,0.00010378,2]
[350418077,1737852638471,-150.0,0.00010378,2]
[350418078,1737852638480,-4400.0,0.000104,3]
[350418079,1737852638490,-5800.0,0.000105,3]
[350418080,1737852638499,-818.59,0.00010502,2]
[350418081,1737852638509,-982.7,0.00010578,2]
[350418082,1737852638519,-2040.25723397,0.000106,3]
[350418083,1737852638545,-5259.74276603,0.000106,3]
[350418084,1737852638555,-250.0,0.0001063,2]
[350418085,1737852638564,-438.0,0.00010631,2]
[350418086,1737852638573,-438.0,0.00010631,2]
[350418087,1737852638585,-438.0,0.00010631,2]
[350418088,1737852638595,-437.44,0.00010631,2]
[350418089,1737852638605,-1002.50239846,0.000107,3]
[350418090,1737852640605,-397.49760154,0.000107,3]
[350418091,1737852640615,-420.0,0.00010788,2]
[350418092,1737852640624,-577.81912606,0.000108,2]
[350418093,1737852642965,736.73,8.219e-05,2]
[350418104,1737852646093,-736.73,0.0001048,2]
[350418106,1737852646114,-137.25477394,0.000108,2]
[350418108,1737852646125,-995.09390566,0.000108,3]
[350418143,1737853413701,169.21,8.052e-05,2]
[350418149,1737853489143,718.45,8.219e-05,2]
[350418181,1737853832404,-250.0,9.617e-05,2]
[350418182,1737853832414,-292.93,9.617e-05,2]
[350418183,1737853832423,-163.99122751,9.861e-05,2]
[350418184,1737853832435,-86.00877249,9.861e-05,2]
[350418185,1737853832445,-210.56305478,9.901e-05,2]
[350418186,1737853832454,-155.0,9.908e-05,2]
[350418187,1737853832464,-181.0,9.975e-05,2]
[350418188,1737853832473,-838.42747273,9.983e-05,2]
[350418189,1737853832686,-161.57252727,9.983e-05,2]
[350418190,1737853832696,-23900.0,0.00010001,2]
[350418191,1737853832706,-250.0,0.00010056,2]
[350418192,1737853832715,-356.66,0.00010065,2]
[350418193,1737853832723,-438.0,0.000101,2]
[350418194,1737853832732,-438.0,0.000101,2]
[350418195,1737853832741,-152.42,0.00010137,2]
[350418196,1737853832750,-150.99,0.00010137,2]
[350418197,1737853832760,-300.0,0.000102,3]
[350418198,1737853832769,-773.64,0.00010241,2]
[350418199,1737853832779,-438.79,0.00010241,2]
[350418200,1737853832790,-438.79,0.00010241,2]
[350418201,1737853832799,-773.64,0.00010241,2]
[350418202,1737853832808,-438.79,0.00010241,2]
[350418203,1737853832817,-773.64,0.00010241,2]
[350418204,1737853832826,-877.13,0.00010241,2]
[350418205,1737853832835,-773.64,0.00010241,2]
[350418206,1737853832847,-773.64,0.00010241,2]
[350418207,1737853832856,-438.79,0.00010241,2]
[350418208,1737853832865,-1412.07,0.00010241,2]
[350418209,1737853832874,-438.79,0.00010241,2]
[350418210,1737853832883,-438.79,0.00010241,2]
[350418211,1737853832893,-1964.56,0.00010278,2]
[350418212,1737853832903,-150.0,0.00010278,2]
[350418213,1737853832912,-150.0,0.00010278,2]
[350418215,1737853832921,-438.0,0.00010278,2]
[350418217,1737853832930,-150.0,0.00010278,2]
[350418219,1737853832939,-438.0,0.00010278,2]
[350418221,1737853832949,-600.0,0.000103,3]
[350418223,1737853832958,-982.7,0.00010378,2]
[350418225,1737853832967,-300.0,0.00010378,2]
[350418227,1737853832977,-438.0,0.00010378,2]
[350418229,1737853832986,-150.0,0.00010378,2]
[350418231,1737853832995,-150.0,0.00010378,2]
[350418233,1737853833006,-150.0,0.00010378,2]
[350418235,1737853833015,-438.0,0.00010378,2]
[350418237,1737853833024,-1151.71,0.00010378,2]
[350418239,1737853833033,-174.18,0.00010396,2]
[350418257,1737853833207,-1000.0,0.000104,3]
[350418259,1737853833219,-718.45,0.00010473,2]
[350418261,1737853833229,-1300.0,0.000105,3]
[350418264,1737853833239,-1600.0,0.000106,3]
[350418265,1737853833248,-300.0,0.000107,3]
[350418267,1737853833258,-6496.4379,0.000107,2]
[350418268,1737853833268,-3905.0,0.00010722,2]
[350418269,1737853833277,-150.0,0.00010722,2]
[350418270,1737853833287,-1177.0,0.00010722,2]
[350418271,1737853833297,-150.0,0.00010731,2]
[350418272,1737853833307,-150.0,0.00010752,2]
[350418273,1737853833317,-150.0,0.00010759,2]
[350418274,1737853833326,-58329.64352852,0.00010762,2]
[350418275,1737853833336,-150.0,0.00010767,2]
[350418276,1737853833348,-500.0,0.00010773,2]
[350418277,1737853833358,-150.0,0.00010775,2]
[350418278,1737853833368,-150.0,0.00010784,2]
[350418279,1737853833378,-14580.818,0.000108,2]
[350418280,1737853833387,-855.3982,0.000108,2]
[350418281,1737853833397,-5000.0,0.000108,2]
[350418282,1737853833406,-22915.5431,0.000108,2]
[350418283,1737853833415,-200.0,0.000108,2]
[350418284,1737853833425,-551693.38053292,0.000108,2]
[350418285,1737853833437,-313.93938244,0.000108,2]
[350418286,1737853833454,-793.07877249,0.000108,2]
[350418287,1737853833469,-74163.39865904,0.000108,2]
[350418299,1737853838368,-10482.15224922,0.000108,2]
[350418300,1737853838393,-25952.56340085,0.000108,2]
[350418301,1737853838495,-19353.58361258,0.000108,2]
[350418302,1737853838517,-74268.86445595,0.000108,2]
[350418303,1737853838526,-300.0,0.000108,3]
[350418304,1737853838536,-2500.0,0.000108,2]
[350418305,1737853838545,-186353.77043653,0.000108,2]
[350418306,1737853838554,-1294.90070456,0.000108,2]
[350418307,1737853838563,-3000.0,0.000108,2]
[350418308,1737853838573,-150.0,0.00010801,2]
[350418309,1737853838582,-150.0,0.00010833,2]
[350418310,1737853838591,-150.0,0.00010836,2]
[350418311,1737853838604,-5290.74041253,0.00010846,2]
[350418312,1737853838613,-150.0,0.00010868,2]
[350418313,1737853838623,-573.15907486,0.00010873,2]
[350418314,1737853838632,-500.0,0.00010873,2]
[350418315,1737853838642,-150.0,0.00010885,2]
[350418316,1737853838652,-188.96285907,0.0001089,2]
[350418317,1737853838661,-173.354,0.000109,2]
[350418319,1737853838670,-174646.42336653,0.000109,2]
[350418321,1737853838682,-38476.13113498,0.000109,2]
[350418322,1737853838694,-152649.24763419,0.000109,2]
[350418323,1737853838733,-5570.14605448,0.000109,2]
[350418324,1737853838744,-4055.14068143,0.000109,2]
[350418327,1737853840391,-1243.38175323,0.000109,2]
[350418328,1737853840445,-4651.7700658,0.000109,2]
[350418329,1737853840456,-4213.79687999,0.000109,2]
[350418330,1737853840725,-34780.82659064,0.000109,2]
[350418331,1737853840737,-464.86247294,0.000109,2]
[350418332,1737853840782,-946.73954925,0.000109,2]
[350418333,1737853840796,-305760.651661,0.000109,2]
[350418344,1737853843361,-438.0,0.000101,2]
[350418345,1737853843371,-437.59,0.00010141,2]
[350418346,1737853843379,-45738.57253543,0.000109,2]
[350418347,1737853843473,-572.4865023,0.000109,2]
[350418348,1737853843532,-711.21613279,0.000109,2]
[350418349,1737853843543,-1841.99436374,0.000109,2]
[350418350,1737853843555,-2434.86374923,0.000109,2]
[350418373,1737853846340,-6778.0,0.000109,2]
[350418374,1737853846354,-51877.63281855,0.000109,2]
[350418375,1737853846392,-1039.449305,0.000109,2]
[350418376,1737853846404,-743640.24742837,0.000109,2]
[350418377,1737853846413,-96571.2665836,0.000109,2]
[350418378,1737853846423,-212.71922618,0.000109,2]
[350418379,1737853846432,-436.46,0.000109,2]
[350418380,1737853846441,-1581.618,0.000109,2]
[350418381,1737853846450,-326.0878657,0.000109,2]
[350418382,1737853846459,-300.0,0.000109,3]
[350418383,1737853846468,-623.91671946,0.000109,2]
[350418384,1737853846477,-511.0,0.000109,2]
[350418385,1737853846486,-150.0,0.00010905,2]
[350418386,1737853846496,-200.0,0.00010908,2]
[350418387,1737853846505,-200.0,0.00010914,2]
[350418388,1737853846514,-200.11873898,0.00010921,2]
[350418389,1737853846523,-3819.0441301,0.00010924,2]
[350418390,1737853846533,-150.0,0.00010925,2]
[350418391,1737853846542,-200.11873898,0.00010928,2]
[350418392,1737853846552,-200.0,0.00010932,2]
[350418393,1737853846562,-200.0,0.00010933,2]
[350418394,1737853846571,-200.0,0.00010934,2]
[350418395,1737853846580,-622.47977729,0.00010934,2]
[350418396,1737853846589,-622.47977729,0.00010937,2]
[350418397,1737853846600,-200.11873898,0.00010938,2]
[350418398,1737853846609,-200.11873898,0.00010945,2]
[350418399,1737853846618,-200.0,0.00010949,2]
[350418400,1737853846627,-200.0,0.0001095,2]
[350418401,1737853846637,-150.0,0.0001095,2]
[350418402,1737853846646,-622.47977729,0.00010954,2]
[350418403,1737853846655,-200.11873898,0.00010957,2]
[350418404,1737853846664,-19851.9,0.00010959,2]
[350418405,1737853846674,-150.0,0.00010964,2]
[350418406,1737853846687,-430.59437616,0.00010967,2]
[350418407,1737853846696,-150.0,0.00010973,2]
[350418408,1737853846706,-3819.0441301,0.00010974,2]
[350418409,1737853846715,-200.0,0.00010975,2]
[350418410,1737853846725,-150.0,0.00010976,2]
[350418411,1737853846734,-3819.0441301,0.0001098,2]
[350418412,1737853846744,-150.0,0.00010982,2]
[350418413,1737853846754,-3819.0441301,0.00010983,2]
[350418414,1737853846764,-150.0,0.00010988,2]
[350418415,1737853846774,-378.6310068,0.00010991,2]
[350418416,1737853846783,-643.3169693,0.00010991,2]
[350418417,1737853846792,-200.0,0.00010992,2]
[350418418,1737853846801,-366.5861913,0.00010992,2]
[350418419,1737853846810,-622.8520996,0.00010992,2]
[350418420,1737853846820,-150.0,0.00010995,2]
[350418421,1737853846829,-622.47977729,0.00010996,2]
[350418422,1737853846839,-150.0,0.00010996,2]
[350418423,1737853846848,-622.47977729,0.00010996,2]
[350418424,1737853846857,-200.0,0.00010997,2]
[350418426,1737853846867,-500.0,0.00010999,2]
[350418428,1737853846876,-626.73,0.00010999,2]
[350418430,1737853846885,-3819.0441301,0.00011,2]
[350418432,1737853846894,-150.0,0.00011,2]
[350418434,1737853846903,-150.0,0.00011,2]
[350418436,1737853846912,-150.979,0.00011,2]
[350418438,1737853846922,-165.846,0.00011,2]
[350418440,1737853846930,-180.302,0.00011,2]
[350418442,1737853846940,-150.258,0.00011,2]
[350418444,1737853846950,-250.0,0.00011,2]
[350418446,1737853846958,-250.0,0.00011,2]
[350418448,1737853846967,-284.086,0.00011,2]
[350418450,1737853846977,-150.057,0.00011,2]
[350418452,1737853846986,-2020.0,0.00011,2]
[350418454,1737853846995,-1270.0,0.00011,2]
[350418456,1737853847004,-567.0,0.00011,2]
[350418458,1737853847013,-636.0,0.00011,2]
[350418460,1737853847022,-150.0,0.00011,2]
[350418462,1737853847031,-1865.0,0.00011,2]
[350418464,1737853847041,-782.0,0.00011,2]
[350418466,1737853847050,-907.0,0.00011,2]
[350418468,1737853847059,-1262.0,0.00011,2]
[350418470,1737853847068,-2949.0,0.00011,2]
[350418472,1737853847077,-3987.0,0.00011,2]
[350418474,1737853847086,-538.0,0.00011,2]
[350418476,1737853847095,-150.0,0.00011,2]
[350418477,1737853847107,-69668.99154337,0.00011,2]
[350418478,1737853847126,-10558.95,0.00011,2]
[350418479,1737853847144,-3536.05,0.00011,2]
[350418480,1737853847319,-904.71186244,0.00011,2]
[350418481,1737853848135,-1106.0,0.0001099,2]
[350418482,1737853848162,-73894.0,0.00011,2]
[350418483,1737854307468,166.13,7.879e-05,2]
[350418485,1737854361888,735.74,8.219e-05,2]
[350418590,1737855031549,-546.62,9.696e-05,2]
[350418591,1737855031559,-1500.0,9.726e-05,2]
[350418592,1737855031568,-1036.59917982,9.734e-05,2]
[350418593,1737855031577,-250.0,9.734e-05,2]
[350418594,1737855031586,-603.97,9.738e-05,2]
[350418595,1737855031595,-155.0,9.743e-05,2]
[350418596,1737855031604,-155.0,9.751e-05,2]
[350418597,1737855031613,-250.0,9.757e-05,2]
[350418598,1737855031622,-1817.51,9.763e-05,2]
[350418599,1737855031631,-155.0,9.768e-05,2]
[350418600,1737855031639,-570.52,9.802e-05,2]
[350418601,1737855031648,-176.38,9.802e-05,2]
[350418602,1737855031658,-1041.43,9.813e-05,2]
[350418603,1737855031667,-150.99,9.813e-05,2]
[350418604,1737855031676,-176.38,9.818e-05,2]
[350418605,1737855031685,-159.9756587,9.818e-05,2]
[350418606,1737855031694,-250.0,9.832e-05,2]
[350418607,1737855031703,-176.38,9.834e-05,2]
[350418608,1737855031712,-17945.13415394,9.836e-05,2]
[350418609,1737855031726,-5954.86584606,9.836e-05,2]
[350418610,1737855031736,-200.0,9.843e-05,2]
[350418611,1737855031744,-176.38,9.851e-05,2]
[350418612,1737855031754,-514.41,9.873e-05,2]
[350418613,1737855031764,-329.45,9.873e-05,2]
[350418614,1737855031773,-171.61,9.873e-05,2]
[350418615,1737855031782,-924.38,9.873e-05,2]
[350418616,1737855031791,-2078.09,9.879e-05,2]
[350418617,1737855031800,-394.52,0.00010137,2]
[350418618,1737855031809,-437.55,0.00010192,2]
[350418619,1737855031818,-300.0,0.000102,3]
[350418620,1737855031828,-150.0,0.000102,2]
[350418621,1737855031837,-700.0,0.000103,3]
[350418622,1737855031846,-1100.0,0.000104,3]
[350418623,1737855031855,-735.74,0.00010468,2]
[350418624,1737855031865,-1400.0,0.000105,3]
[350418625,1737855031875,-1800.0,0.000106,3]
[350418626,1737855031884,-541.09093741,0.000107,2]
[350418627,1737855031894,-300.0,0.000107,3]
[350418628,1737855031903,-150.0,0.00010727,2]
[350418629,1737855031912,-150.0,0.00010728,2]
[350418630,1737855031921,-150.0,0.00010728,2]
[350418631,1737855031930,-150.0,0.00010728,2]
[350418632,1737855031939,-150.0,0.0001073,2]
[350418633,1737855031949,-150.0,0.00010731,2]
[350418634,1737855031958,-150.0,0.00010734,2]
[350418635,1737855031967,-150.0,0.00010735,2]
[350418636,1737855031976,-150.0,0.00010736,2]
[350418637,1737855031986,-150.0,0.00010741,2]
[350418638,1737855031995,-150.0,0.00010743,2]
[350418639,1737855032005,-150.0,0.00010743,2]
[350418640,1737855032014,-150.0,0.00010744,2]
[350418641,1737855032024,-150.0,0.00010747,2]
[350418642,1737855032033,-150.0,0.00010747,2]
[350418643,1737855032043,-150.0,0.00010754,2]
[350418645,1737855032052,-150.0,0.00010754,2]
[350418647,1737855032061,-150.0,0.00010764,2]
[350418649,1737855032071,-915.45462686,0.00010772,2]
[350418650,1737855032080,-150.0,0.00010773,2]
[350418651,1737855032089,-150.0,0.00010776,2]
[350418652,1737855032098,-150.0,0.00010778,2]
[350418653,1737855032108,-150.0,0.00010796,2]
[350418654,1737855032117,-4496.84,0.000108,2]
[350418655,1737855032127,-221.1191,0.000108,2]
[350418656,1737855032137,-7912.2731,0.000108,2]
[350418657,1737855032146,-150.0,0.000108,2]
[350418658,1737855032155,-213.40781597,0.000108,2]
[350418659,1737855032164,-300.0,0.000108,3]
[350418660,1737855032173,-312.1523,0.000108,2]
[350418661,1737855032183,-455.53260429,0.000108,2]
[350418662,1737855032192,-150.0,0.00010804,2]
[350418663,1737855032202,-150.0,0.00010804,2]
[350418664,1737855032211,-150.0,0.00010808,2]
[350418665,1737855032220,-150.0,0.00010808,2]
[350418667,1737855032229,-150.0,0.0001081,2]
[350418669,1737855032238,-150.0,0.00010815,2]
[350418671,1737855032247,-150.0,0.00010816,2]
[350418673,1737855032256,-150.0,0.00010817,2]
[350418675,1737855032265,-150.0,0.00010818,2]
[350418677,1737855032274,-150.0,0.00010822,2]
[350418679,1737855032283,-150.0,0.00010823,2]
[350418680,1737855032292,-1000.0,0.00010835,2]
[350418681,1737855032455,-150.0,0.00010841,2]
[350418682,1737855032464,-150.0,0.00010845,2]
[350418683,1737855032473,-150.0,0.00010855,2]
[350418684,1737855032484,-150.0,0.00010856,2]
[350418685,1737855032493,-150.0,0.00010856,2]
[350418686,1737855032502,-197.13148914,0.00010856,2]
[350418687,1737855032511,-150.0,0.00010857,2]
[350418688,1737855032520,-150.0,0.00010857,2]
[350418689,1737855032530,-150.0,0.00010857,2]
[350418690,1737855032539,-1000.0,0.00010858,2]
[350418691,1737855032548,-150.0,0.00010861,2]
[350418692,1737855032557,-150.0,0.00010865,2]
[350418693,1737855032566,-150.0,0.00010867,2]
[350418694,1737855032576,-1963.666,0.0001087,2]
[350418695,1737855032585,-150.0,0.00010871,2]
[350418696,1737855032594,-150.0,0.00010874,2]
[350418697,1737855032603,-150.0,0.00010882,2]
[350418698,1737855032613,-150.0,0.00010882,2]
[350418699,1737855032622,-150.0,0.00010883,2]
[350418700,1737855032631,-150.0,0.00010884,2]
[350418701,1737855032640,-150.0,0.00010895,2]
[350418702,1737855032649,-480.5181,0.00010899,2]
[350418703,1737855032659,-466.26471362,0.00010899,2]
[350418704,1737855032668,-682.3296,0.000109,2]
[350418705,1737855032678,-993.1085,0.000109,2]
[350418706,1737855032687,-5000.0,0.000109,2]
[350418707,1737855032696,-608.4299,0.000109,2]
[350418708,1737855032705,-21165.69587269,0.000109,2]
[350418709,1737855032751,-1582.66733904,0.000109,2]
[350418710,1737855032762,-22856.39901922,0.000109,2]
[350418711,1737855032773,-300.0,0.000109,3]
[350418712,1737855032783,-417.80188592,0.000109,2]
[350418713,1737855032792,-150.0,0.00010904,2]
[350418714,1737855032803,-150.0,0.00010916,2]
[350418715,1737855032813,-521.99452922,0.00010918,2]
[350418716,1737855032822,-200.0,0.00010918,2]
[350418717,1737855032832,-625.8079991,0.0001092,2]
[350418718,1737855032841,-150.0,0.00010922,2]
[350418719,1737855032850,-150.0,0.00010922,2]
[350418720,1737855032859,-521.99452922,0.00010924,2]
[350418721,1737855032869,-521.99452922,0.00010926,2]
[350418722,1737855032878,-521.99452922,0.00010927,2]
[350418723,1737855032887,-521.99452922,0.00010931,2]
[350418724,1737855032897,-150.0,0.00010934,2]
[350418725,1737855032906,-150.0,0.00010941,2]
[350418726,1737855032916,-150.0,0.00010942,2]
[350418727,1737855032925,-625.8079991,0.00010947,2]
[350418728,1737855032934,-150.0,0.00010952,2]
[350418729,1737855032944,-1492.639,0.00010954,2]
[350418730,1737855032954,-625.8079991,0.00010956,2]
[350418731,1737855032963,-150.0,0.00010957,2]
[350418732,1737855032972,-625.8079991,0.00010959,2]
[350418733,1737855032982,-1000.0,0.00010959,2]
[350418734,1737855032991,-150.0,0.00010962,2]
[350418735,1737855033000,-200.0,0.00010963,2]
[350418736,1737855033010,-150.0,0.00010963,2]
[350418737,1737855033020,-1000.0,0.00010963,2]
[350418738,1737855033029,-150.0,0.00010964,2]
[350418739,1737855033039,-119.95545236,0.0001097,2]
[350418740,1737855033051,-2261.90274804,0.0001097,2]
[350418741,1737855033063,-6988.61886519,0.0001097,2]
[350418742,1737855033075,-3285.07097379,0.0001097,2]
[350418743,1737855033086,-9344.45196063,0.0001097,2]
[350418744,1737855033096,-150.0,0.0001097,2]
[350418745,1737855033105,-150.0,0.00010971,2]
[350418746,1737855033115,-270.46643519,0.00010973,2]
[350418747,1737855033126,-500.0,0.00010973,2]
[350418748,1737855033135,-150.0,0.00010973,2]
[350418749,1737855033144,-150.0,0.00010976,2]
[350418750,1737855033154,-200.0,0.00010978,2]
[350418751,1737855033163,-150.0,0.00010981,2]
[350418752,1737855033173,-150.0,0.00010982,2]
[350418753,1737855033183,-200.0,0.00010984,2]
[350418754,1737855033192,-150.0,0.00010985,2]
[350418755,1737855033202,-150.0,0.00010987,2]
[350418756,1737855033212,-150.0,0.00010989,2]
[350418757,1737855033232,-160.33506954,0.0001099,2]
[350418758,1737855033244,-474.1215114,0.00010991,2]
[350418759,1737855033254,-697.0379362,0.00010991,2]
[350418760,1737855033264,-648.8586738,0.00010991,2]
[350418761,1737855033274,-150.0,0.00010991,2]
[350418762,1737855033284,-436.9235536,0.00010992,2]
[350418763,1737855033295,-625.8079991,0.00010993,2]
[350418764,1737855033305,-200.0,0.00010997,2]
[350418765,1737855033314,-3674.91023975,0.00010999,2]
[350418766,1737855033324,-1000.0,0.00010999,2]
[350418767,1737855033333,-600.62,0.00010999,2]
[350418768,1737855033344,-500.0,0.00010999,2]
[350418769,1737855033353,-500.0,0.00010999,2]
[350418770,1737855033363,-500.0,0.00010999,2]
[350418771,1737855033372,-500.0,0.00010999,2]
[350418772,1737855033382,-523.0,0.00011,2]
[350418773,1737855033392,-2928.66638301,0.00011,2]
[350418774,1737855033418,-368.23692151,0.00011,2]
[350418775,1737855033430,-4235.56729016,0.00011,2]
[350418776,1737855033442,-4595.28219912,0.00011,2]
[350418777,1737855033467,-2535.45362981,0.00011,2]
[350418778,1737855033478,-1556.86132869,0.00011,2]
[350418779,1737855037482,-1000.0,9.92e-05,2]
[350418780,1737855037492,-170.93,9.92e-05,2]
[350418781,1737855037501,-353.83141505,0.00011,2]
[350418782,1737855037512,-1383.91575475,0.00011,2]
[350418784,1737855037523,-1168.96230024,0.00011,2]
[350418785,1737855037534,-630.69068571,0.00011,2]
[350418786,1737855037546,-4087.13897112,0.00011,2]
[350418787,1737855037578,-24938.24432065,0.00011,2]
[350418788,1737855037588,-53969.3780223,0.00011,2]
[350418789,1737855037599,-132397.85347164,0.00011,2]
[350418790,1737855037643,-508.20958411,0.00011,2]
[350418791,1737855037654,-547.18977324,0.00011,2]
[350418792,1737855037665,-896.4525,0.00011,2]
[350418793,1737855037676,-1814.03961151,0.00011,2]
[350418794,1737855037715,-8054.35463218,0.00011,2]
[350418795,1737855037727,-1860.04352126,0.00011,2]
[350418796,1737855037745,-3600.0,0.00011,2]
[350418797,1737855037758,-717.33266096,0.00011,2]
[350418798,1737855037828,-378.00513087,0.00011,2]
[350418799,1737855039574,-1096.47997044,0.0001078,2]
[350418800,1737855039584,-252556.7344232,0.00011,2]
[350418801,1737855039594,-102389.7025773,0.00011,2]
[350418802,1737855039606,-28049.34219364,0.00011,2]
[350418803,1737855039617,-117523.6734315,0.00011,2]
[350418804,1737855039629,-1378.14448938,0.00011,2]
[350418805,1737855039640,-1693.3984075,0.00011,2]
[350418806,1737855039783,-1125.077993,0.00011,2]
[350418807,1737855039796,-586.89997212,0.00011,2]
[350418808,1737855039860,-806.9215952,0.00011,2]
[350418809,1737855039872,-656.76936848,0.00011,2]
[350418810,1737855039883,-271.55351213,0.00011,2]
[350418811,1737855039896,-1655.59,0.00011,2]
[350418812,1737855039909,-17223.46365979,0.00011,2]
[350418813,1737855039922,-605.6689313,0.00011,2]
[350418814,1737855039943,-1748.60334505,0.00011,2]
[350418815,1737855039953,-27804.80724561,0.00011,2]
[350418816,1737855039964,-1660.07913423,0.00011,2]
[350418817,1737855039976,-4752.07972932,0.00011,2]
[350418818,1737855039987,-1497.77999999,0.00011,2]
[350418819,1737855039998,-4000.39879996,0.00011,2]
[350418824,1737855042575,-1836.16629,0.00011,2]
[350418825,1737855042586,-5308.03231515,0.00011,2]
[350418826,1737855042640,-26295.82231094,0.00011,2]
[350418827,1737855042722,-27400.78050577,0.00011,2]
[350418828,1737855042787,-84860.52425877,0.00011,2]
[350418829,1737855042799,-728.39843879,0.00011,2]
[350418830,1737855042851,-20104.5357876,0.00011,2]
[350418831,1737855042863,-804.4,0.00011,2]
[350418832,1737855042917,-25086.050717,0.00011,2]
[350418839,1737855045584,-528.0,0.00011,2]
[350418840,1737855045594,-1910.43008209,0.00011,2]
[350418841,1737855045604,-300.0,0.00011,2]
[350418842,1737855045655,-44367.03805936,0.00011,2]
[350418843,1737855045666,-1220.31603624,0.00011,2]
[350418844,1737855045677,-3349.55,0.00011,2]
[350418845,1737855045688,-679.40528476,0.00011,2]
[350418846,1737855045727,-325.91,0.00011,2]
[350418847,1737855045803,-6597.082116,0.00011,2]
[350418848,1737855045814,-11005.87991893,0.00011,2]
[350418849,1737855045825,-2847.23246661,0.00011,2]
[350418850,1737855045876,-2206.50692819,0.00011,2]
[350418851,1737855045887,-322.8916,0.00011,2]
[350418852,1737855045899,-678.14139368,0.00011,2]